bitfinex-derivatives/quotes_SOLF0:USTF0_20241211
["timestamp","ask_amount","ask_price","bid_price","bid_amount"]
[1733918925084,2.16,225.55,225.52,3.94033628]
[1733918925382,2.16,225.55,225.53,3.93947554]
[1733918925682,2.16,225.55,225.5,8.8481411]
[1733918925886,2.16,225.55,225.51,3.93959978]
[1733918926088,4.3758,225.55,225.52,3.93959978]
[1733918926484,4.3758,225.55,225.5,6.6319411]
[1733918926684,2.2159,225.54,225.51,3.94126679]
[1733918926885,2.2159,225.54,225.48,6.6319411]
[1733918927081,2.2159,225.54,225.49,3.94161052]
[1733918927286,2.2159,225.54,225.5,3.94161052]
[1733918927481,2.2159,225.54,225.51,3.94161052]
[1733918927682,2.216,225.53,225.48,8.8483411]
[1733918927887,2.216,225.53,225.49,3.94239605]
[1733918928084,2.216,225.53,225.5,3.94239605]
[1733918928284,2.216,225.53,225.51,3.94239605]
[1733918928488,2.216,225.53,225.52,3.94239605]
[1733918928687,2.216,225.53,225.48,6.6319411]
[1733918928887,2.216,225.53,225.49,3.94530995]
[1733918929093,2.216,225.53,225.5,3.94530995]
[1733918929282,2.216,225.53,225.51,3.94534805]
[1733918929481,2.216,225.53,225.48,6.6319411]
[1733918929782,2.216,225.53,225.49,3.94664328]
[1733918929986,2.216,225.53,225.5,3.94664328]
[1733918930185,2.216,225.53,225.51,3.94664328]
[1733918930387,2.216,225.53,225.52,3.94753011]
[1733918932283,8.7919411,225.55,225.48,6.6319411]
[1733918932284,2.2161,225.52,225.48,6.6319411]
[1733918932490,2.2161,225.52,225.49,3.95026274]
[1733918932693,2.2161,225.52,225.5,3.95026274]
[1733918932989,2.2161,225.52,225.48,6.6319411]
[1733918933291,2.2162,225.51,225.49,3.95069009]
[1733918933493,2.2162,225.51,225.5,3.95069009]
[1733918935594,2.2162,225.51,225.47,6.6319411]
[1733918935796,2.2162,225.51,225.5,3.95444927]
[1733918935995,8.7919411,225.55,225.5,3.95444927]
[1733918936294,8.7919411,225.55,225.51,3.95444927]
[1733918936493,2.2162,225.51,225.48,5.41468105]
[1733918936698,2.2162,225.51,225.49,3.95984734]
[1733918936995,2.2162,225.51,225.5,3.95984734]
[1733918938895,2.2162,225.51,225.48,5.41468105]
[1733918939496,2.2162,225.51,225.49,3.96348815]
[1733918939801,2.216,225.53,225.5,3.96348815]
[1733918939996,2.216,225.53,225.51,3.96348815]
[1733918940297,2.216,225.53,225.52,3.96348815]
[1733918941195,2.216,225.53,225.49,6.6319411]
[1733918941393,2.216,225.53,225.5,3.9641039]
[1733918941697,2.216,225.53,225.51,3.9641039]
[1733918941896,2.216,225.53,225.52,3.9641039]
[1733918942497,8.8479411,225.53,225.52,3.9641039]
[1733918943198,6.6319411,225.53,225.42,2.217]
[1733918943402,2.2165,225.48,225.44,6.6319411]
[1733918943596,2.2165,225.48,225.45,3.96800335]
[1733918943906,2.16,225.5,225.46,10.59994445]
[1733918944092,2.16,225.5,225.47,3.96800335]
[1733918944294,4.3758,225.55,225.49,2.2163]
[1733918944497,4.3758,225.55,225.5,10.59994445]
[1733918944701,18.0,225.76,225.52,6.6319411]
[1733918944899,2.2155,225.59,225.54,6.6319411]
[1733918945095,6.6319411,225.6,225.54,6.6319411]
[1733918945402,4.3752,225.61,225.56,6.6319411]
[1733918945602,2.16,225.61,225.58,6.6319411]
[1733918946004,2.16,225.61,225.59,3.96800335]
[1733918946207,2.16,225.61,225.6,3.96800335]
[1733918949111,2.2146,225.67,225.6,12.81514445]
[1733918949313,2.2146,225.67,225.62,6.6319411]
[1733918949314,4.3746,225.67,225.62,6.6319411]
[1733918949516,4.3746,225.67,225.63,3.96800335]
[1733918949814,2.2146,225.67,225.64,3.96800335]
[1733918950018,6.6319411,225.68,225.65,3.96800335]
[1733918950313,8.7919411,225.68,225.66,3.96800335]
[1733918950518,11.0065411,225.68,225.67,3.96800335]
[1733918952214,2.2149,225.64,225.58,8.8474411]
[1733918952414,2.2149,225.64,225.59,3.97164784]
[1733918953611,2.2149,225.64,225.6,3.97164784]
[1733918953819,2.2149,225.64,225.61,3.97164784]
[1733918954120,2.2149,225.64,225.62,3.97164784]
[1733918954318,2.2149,225.64,225.63,3.97164784]
[1733918954624,2.2148,225.65,225.6,6.6319411]
[1733918954919,6.6319411,225.67,225.6,6.6319411]
[1733918955114,2.2151,225.62,225.61,3.96717288]
[1733918962021,2.14,225.63,225.61,3.96717288]
[1733918962322,4.355,225.63,225.62,3.96717288]
[1733918965320,2.215,225.63,225.62,3.96717288]
[1733918970124,2.2156,225.57,225.54,6.6319411]
[1733918970322,2.2156,225.57,225.55,3.96961393]
[1733918970529,2.2156,225.57,225.56,3.96961393]
[1733918971529,2.2156,225.57,225.56,9.3329576]
[1733918971731,2.2155,225.58,225.56,9.3329576]
[1733918971930,2.2155,225.58,225.57,3.96961393]
[1733918974824,2.2155,225.58,225.57,3.97039162]
[1733918979736,2.2152,225.61,225.57,3.97039162]
[1733918979939,2.2152,225.61,225.58,3.97039162]
[1733918980244,2.2152,225.61,225.59,3.97039162]
[1733918980538,2.2152,225.61,225.6,3.97039162]
[1733918980841,2.2151,225.62,225.6,3.97039162]
[1733918981042,2.14,225.63,225.61,3.97039162]
[1733918981237,2.14,225.63,225.62,3.97039162]
[1733918981643,2.14,225.63,225.62,3.97322583]
[1733918982342,4.355,225.63,225.62,3.97322583]
[1733918983642,2.215,225.63,225.62,3.97322583]
[1733918984035,4.3549,225.64,225.62,3.97322583]
[1733918984240,1.3647,225.72,225.63,10.60516693]
[1733918984441,2.2144,225.69,225.64,3.97322583]
[1733918984643,2.14,225.7,225.65,6.6319411]
[1733918984846,2.14,225.72,225.65,10.60354982]
[1733918985050,2.14,225.72,225.66,3.97160872]
[1733918985353,2.14,225.72,225.67,3.97160872]
[1733918985537,2.14,225.72,225.68,3.97160872]
[1733918985738,2.14,225.72,225.61,2.7584]
[1733918985739,2.2143,225.7,225.69,3.97160872]
[1733918986042,0.25,225.71,225.65,6.6319411]
[1733918986345,0.25,225.71,225.66,3.97072367]
[1733918986546,2.2144,225.69,225.67,3.97072367]
[1733918986746,2.2144,225.69,225.68,3.97072367]
[1733918991745,2.2144,225.69,225.65,6.6319411]
[1733918991944,2.2144,225.69,225.68,3.97449617]
[1733918996057,2.2146,225.67,225.65,6.6319411]
[1733918996559,8.7719411,225.7,225.61,1.3348]
[1733918996759,8.7719411,225.7,225.62,6.6319411]
[1733918997456,8.7719411,225.7,225.63,3.97385383]
[1733918997663,8.7719411,225.7,225.64,3.97385383]
[1733918997863,2.2148,225.66,225.65,3.97385383]
[1733918998161,2.2148,225.66,225.62,6.6319411]
[1733918998561,2.2148,225.65,225.62,6.6319411]
[1733918998859,8.7719411,225.7,225.63,3.97460682]
[1733918999161,8.7719411,225.7,225.64,3.97460682]
[1733918999359,8.7719411,225.7,225.65,3.97460682]
[1733918999560,8.7719411,225.7,225.66,3.97460682]
[1733918999861,2.2145,225.68,225.67,3.97460682]
[1733919000958,2.2148,225.66,225.62,6.6319411]
[1733919001460,8.7719411,225.7,225.63,3.97487275]
[1733919001663,1.3584,225.74,225.66,6.6319411]
[1733919001664,2.14,225.69,225.66,6.6319411]
[1733919001857,2.14,225.69,225.67,3.97487275]
[1733919002061,2.14,225.69,225.68,3.97487275]
[1733919002866,7.9903411,225.74,225.68,3.97487275]
[1733919003061,2.14,225.73,225.69,3.97487275]
[1733919003267,6.6319411,225.72,225.7,3.97487275]
[1733919003468,6.6319411,225.72,225.64,6.6319411]
[1733919003966,2.2146,225.67,225.65,3.9731046]
[1733919004266,2.2146,225.67,225.66,3.9731046]
[1733919009367,0.25,225.67,225.66,3.9731046]
[1733919009572,0.25,225.67,225.66,10.6050457]
[1733919010769,0.25,225.67,225.66,10.60487198]
[1733919013269,0.25,225.67,225.66,3.97293088]
[1733919013974,2.4646,225.67,225.66,3.97293088]
[1733919014574,4.6046,225.67,225.66,3.97293088]
[1733919015966,0.25,225.67,225.66,3.97293088]
[1733919016174,0.25,225.67,225.66,10.60487198]
[1733919017277,0.25,225.67,225.66,3.97251103]
[1733919017479,2.4646,225.67,225.66,3.97251103]
[1733919018279,0.25,225.67,225.66,3.97251103]
[1733919019474,0.25,225.67,225.66,10.60445213]
[1733919019675,2.2143,225.7,225.66,10.60445213]
[1733919019877,2.2143,225.7,225.67,3.97251103]
[1733919020076,2.2143,225.7,225.68,3.97251103]
[1733919020477,2.2143,225.7,225.69,3.97251103]
[1733919020777,2.2144,225.69,225.66,6.6319411]
[1733919020981,2.14,225.71,225.65,6.6319411]
[1733919021176,8.7719411,225.71,225.66,3.97324106]
[1733919021372,8.7719411,225.71,225.67,3.97324106]
[1733919021574,8.7719411,225.71,225.68,3.97324106]
[1733919021780,8.7719411,225.71,225.69,3.97324106]
[1733919021978,10.9861411,225.71,225.7,3.97324106]
[1733919022478,4.3542,225.71,225.7,3.97324106]
[1733919023884,2.14,225.71,225.7,3.97757265]
[1733919024983,2.14,225.71,225.7,10.60951375]
[1733919025681,2.2141,225.73,225.7,10.60951375]
[1733919025885,2.2141,225.73,225.71,3.97757265]
[1733919026085,2.2141,225.73,225.72,3.97757265]
[1733919030285,8.8460411,225.73,225.72,3.97757265]
[1733919030490,2.2144,225.69,225.66,6.6319411]
[1733919030691,2.2144,225.69,225.67,3.98296817]
[1733919030992,2.14,225.69,225.68,3.98311774]
[1733919031988,4.3544,225.69,225.68,3.98311774]
[1733919032188,4.3544,225.69,225.63,6.6319411]
[1733919032189,2.14,225.69,225.63,6.6319411]
[1733919032489,2.14,225.69,225.64,5.29256515]
[1733919032686,2.2147,225.66,225.64,5.29256515]
[1733919033591,2.2148,225.65,225.64,5.29256515]
[1733919034288,8.7719411,225.69,225.61,1.3348]
[1733919034489,8.7719411,225.69,225.56,1.3142]
[1733919034490,6.6319411,225.66,225.56,1.3142]
[1733919034687,6.6319411,225.66,225.58,6.6319411]
[1733919035185,6.6319411,225.64,225.59,5.33243882]
[1733919035386,6.6319411,225.64,225.56,1.3142]
[1733919035387,2.2154,225.6,225.56,1.3142]
[1733919035592,2.14,225.63,225.56,7.9461411]
[1733919035782,2.14,225.63,225.56,6.6319411]
[1733919036390,2.2155,225.58,225.56,6.6319411]
[1733919036793,2.14,225.63,225.56,6.6319411]
[1733919036994,6.6319411,225.62,225.56,6.6319411]
[1733919037193,6.6319411,225.58,225.47,24.20378153]
[1733919037395,6.6319411,225.56,225.5,6.6319411]
[1733919037690,2.14,225.55,225.5,6.6319411]
[1733919038496,2.2161,225.51,225.5,6.6319411]
[1733919040296,4.3559,225.55,225.5,6.6319411]
[1733919040694,2.14,225.55,225.51,6.6319411]
[1733919041690,2.2159,225.54,225.51,6.6319411]
[1733919041894,2.2159,225.54,225.49,7.63582127]
[1733919042195,2.2159,225.54,225.5,6.6319411]
[1733919042394,2.14,225.55,225.49,5.41952127]
[1733919042694,6.6319411,225.51,225.46,1.3778]
[1733919042900,2.14,225.5,225.46,1.3778]
[1733919043093,2.2165,225.48,225.46,8.0097411]
[1733919043397,6.6319411,225.49,225.42,72.68462531]
[1733919043794,2.2166,225.46,225.42,72.68462531]
[1733919044995,2.2167,225.45,225.42,72.68462531]
[1733919045397,6.6319411,225.49,225.42,72.68462531]
[1733919046003,6.6319411,225.49,225.43,5.43207871]
[1733919046205,2.14,225.5,225.37,2.7239]
[1733919046206,6.6319411,225.45,225.37,2.7239]
[1733919046399,5.7799,225.62,225.34,6.6319411]
[1733919046400,6.6319411,225.41,225.34,6.6319411]
[1733919046701,2.2174,225.38,225.35,2.2187708]
[1733919046998,6.6319411,225.39,225.35,2.2187708]
[1733919047501,6.6319411,225.39,225.35,7.56410229]
[1733919048303,6.6319411,225.39,225.35,2.2187708]
[1733919048503,2.14,225.4,225.35,2.2187708]
[1733919048700,8.7719411,225.4,225.35,2.2187708]
[1733919050002,2.2175,225.38,225.35,2.2187708]
[1733919050400,2.2176,225.36,225.35,2.2187708]
[1733919051099,8.8495411,225.36,225.35,2.2187708]
[1733919051703,6.6319411,225.36,225.3,1.3935]
[1733919052000,2.14,225.35,225.31,5.20804713]
[1733919052609,2.2178,225.34,225.31,5.20804713]
[1733919056101,2.14,225.33,225.31,5.20804713]
[1733919057809,2.14,225.34,225.31,5.20804713]
[1733919058608,2.14,225.35,225.31,5.20804713]
[1733919060004,8.8496411,225.36,225.31,5.20804713]
[1733919060308,2.14,225.35,225.31,5.20804713]
[1733919061710,6.6319411,225.38,225.32,6.6319411]
[1733919062010,6.6319411,225.38,225.31,5.20804713]
[1733919062210,6.6319411,225.36,225.31,5.20804713]
[1733919062507,2.14,225.35,225.31,5.20804713]
[1733919062908,2.218,225.33,225.28,72.72041514]
[1733919063612,2.218,225.32,225.28,72.72041514]
[1733919064310,6.6319411,225.34,225.28,72.72041514]
[1733919064608,2.2179,225.33,225.3,5.35670217]
[1733919064809,2.2179,225.33,225.28,74.93871514]
[1733919065210,2.14,225.35,225.28,74.93871514]
[1733919065412,2.14,225.35,225.28,66.08847404]
[1733919065608,6.6319411,225.33,225.28,66.08847404]
[1733919067007,6.6319411,225.3,225.24,1.4538]
[1733919067213,2.14,225.29,225.24,1.4538]
[1733919068413,2.14,225.29,225.26,5.29516397]
[1733919068712,2.2186,225.27,225.26,5.29516397]
[1733919071212,2.2186,225.27,225.24,1.4538]
[1733919071414,2.2187,225.26,225.24,1.4538]
[1733919072009,2.2187,225.26,225.24,6.89370745]
[1733919074710,2.2189,225.23,225.19,2.2192]
[1733919074910,2.2189,225.23,225.19,6.6319411]
[1733919075516,2.2189,225.23,225.17,1.3638]
[1733919075710,2.2189,225.23,225.18,6.6319411]
[1733919075912,2.2189,225.23,225.17,1.3638]
[1733919076209,2.2189,225.23,225.18,6.6319411]
[1733919076411,2.2189,225.23,225.17,1.3638]
[1733919076714,10.9908411,225.24,225.17,1.3638]
[1733919076911,8.7719411,225.24,225.17,7.9957411]
[1733919078010,8.7719411,225.24,225.15,91.92199731]
[1733919078215,8.7719411,225.24,225.16,28.62101737]
[1733919078216,2.219,225.22,225.16,28.62101737]
[1733919078420,2.219,225.22,225.17,4.41723584]
[1733919078614,2.219,225.22,225.16,12.68288648]
[1733919079115,2.219,225.22,225.18,2.2193]
[1733919079612,2.219,225.22,225.16,30.83572263]
[1733919079815,8.7719411,225.24,225.19,2.2193]
[1733919080017,2.2189,225.23,225.19,2.2193]
[1733919080413,8.8509411,225.22,225.19,2.2193]
[1733919080810,8.8509411,225.22,225.18,7.63494536]
[1733919082822,2.2189,225.23,225.19,2.2192]
[1733919084724,2.14,225.26,225.2,6.6319411]
[1733919085620,4.3587,225.26,225.22,2.2189]
[1733919086321,2.14,225.26,225.22,2.2189]
[1733919089928,4.3587,225.26,225.2,2.2191]
[1733919090231,2.14,225.26,225.2,2.2191]
[1733919090426,6.6319411,225.25,225.2,2.2191]
[1733919091327,10.9906411,225.25,225.2,2.2191]
[1733919091828,2.2188,225.24,225.2,2.2191]
[1733919092227,2.2188,225.24,225.18,14.26678646]
[1733919092427,2.2189,225.23,225.18,14.26678646]
[1733919093529,2.2189,225.23,225.19,2.2193]
[1733919094224,2.2189,225.23,225.19,8.8512411]
[1733919099040,2.2189,225.23,225.19,6.6319411]
[1733919099243,2.14,225.25,225.19,6.6319411]
[1733919099737,2.14,225.25,225.21,6.6319411]
[1733919099937,4.3587,225.25,225.22,2.2189]
[1733919100336,2.2187,225.25,225.22,2.2189]
[1733919100640,4.3587,225.25,225.22,2.2189]
[1733919101140,2.2187,225.25,225.22,2.2189]
[1733919101336,2.14,225.25,225.22,2.2189]
[1733919103142,2.14,225.25,225.21,6.6319411]
[1733919103638,2.14,225.25,225.18,5.41554536]
[1733919103841,2.14,225.25,225.21,2.2191]
[1733919104939,4.3587,225.25,225.21,2.2191]
[1733919105443,2.2189,225.23,225.19,2.2193]
[1733919108045,2.219,225.22,225.19,2.2193]
[1733919108849,6.6319411,225.22,225.15,73.86573707]
[1733919109142,6.6319411,225.22,225.15,67.71821578]
[1733919109338,6.6319411,225.2,225.15,67.71821578]
[1733919109541,2.2195,225.18,225.15,67.71821578]
[1733919110449,2.2195,225.18,225.16,5.29142357]
[1733919111250,2.2195,225.18,225.13,2.2199]
[1733919111450,2.2195,225.18,225.13,8.8518411]
[1733919111741,2.2195,225.17,225.13,7.46780777]
[1733919111946,2.2195,225.17,225.13,14.09974887]
[1733919112845,4.3594,225.19,225.14,2.2197]
[1733919113148,2.14,225.19,225.14,2.2197]
[1733919113348,2.14,225.19,225.13,5.24790777]
[1733919114647,2.2195,225.17,225.13,7.46780777]
[1733919116047,2.2198,225.15,225.1,2.2202]
[1733919116247,2.14,225.14,225.09,6.6319411]
[1733919116649,2.14,225.14,225.05,24.59008518]
[1733919116945,2.14,225.14,225.07,6.6319411]
[1733919117147,2.2201,225.12,225.09,5.39253137]
[1733919117649,2.22,225.12,225.07,8.8523411]
[1733919117954,2.14,225.13,225.09,6.6319411]
[1733919118155,2.14,225.13,225.03,24.59008518]
[1733919118447,2.14,225.13,225.02,10.41102129]
[1733919118647,2.14,225.13,225.05,6.6319411]
[1733919118648,6.6319411,225.12,225.05,6.6319411]
[1733919118854,2.2202,225.1,225.07,5.4235318]
[1733919120259,2.2202,225.1,225.02,4.2635]
[1733919120260,2.2203,225.09,225.04,6.6319411]
[1733919120450,2.14,225.08,225.04,6.6319411]
[1733919120851,4.3604,225.08,225.04,6.6319411]
[1733919121051,8.7719411,225.08,225.02,4.2635]
[1733919121356,6.6319411,225.06,224.99,6.6319411]
[1733919121750,2.221,225.02,224.98,2.2213]
[1733919122051,2.221,225.02,224.97,6.6319411]
[1733919122052,4.361,225.02,224.97,6.6319411]
[1733919123154,4.361,225.02,224.97,2.2215]
[1733919123454,2.2211,225.01,224.97,2.2215]
[1733919124245,2.2211,225.01,224.97,5.42433368]
[1733919126557,6.6319411,225.0,224.95,2.2216]
[1733919126752,6.6319411,225.0,224.94,1.3867]
[1733919126954,8.8533411,224.98,224.95,5.43678937]
[1733919127157,2.14,224.97,224.95,5.43678937]
[1733919127457,6.6319411,224.96,224.89,6.6319411]
[1733919128653,6.6319411,224.96,224.9,2.2221]
[1733919128654,2.2218,224.95,224.9,2.2221]
[1733919128850,6.6319411,224.96,224.87,65.15700229]
[1733919129054,6.6319411,224.94,224.87,65.15700229]
[1733919129251,2.2219,224.93,224.88,2.2224]
[1733919129659,6.6319411,224.94,224.89,2.2222]
[1733919129660,2.14,224.92,224.89,2.2222]
[1733919130159,6.6319411,224.94,224.89,5.46413483]
[1733919130355,2.14,224.93,224.89,5.46413483]
[1733919130950,2.14,224.93,224.89,7.68633483]
[1733919131151,2.2215,224.98,224.89,5.46413483]
[1733919131358,4.4396,225.15,224.97,2.2215]
[1733919131559,6.6319411,225.02,224.94,6.6319411]
[1733919131755,2.2209,225.03,224.96,6.6319411]
[1733919131952,2.14,225.02,224.96,6.6319411]
[1733919132354,2.2208,225.04,224.96,6.6319411]
[1733919132563,2.14,225.03,224.91,1.3893]
[1733919132758,6.6319411,225.03,224.96,6.6319411]
[1733919133460,2.221,225.02,224.97,2.2214]
[1733919133957,2.221,225.02,224.96,6.6319411]
[1733919134163,6.6319411,225.03,224.96,6.6319411]
[1733919134353,2.14,225.04,224.98,6.6319411]
[1733919135155,2.14,225.04,225.01,2.221]
[1733919135455,4.3605,225.08,225.0,6.6319411]
[1733919135763,2.14,225.08,225.04,2.2207]
[1733919137162,2.2205,225.07,225.02,2.2209]
[1733919137662,10.9923411,225.08,225.03,2.2209]
[1733919137863,8.7719411,225.08,225.0,6.6319411]
[1733919138756,6.6319411,225.08,225.0,6.6319411]
[1733919138961,2.14,225.07,225.0,6.6319411]
[1733919139561,2.14,225.07,225.03,2.2208]
[1733919140866,2.2207,225.05,225.01,5.3772873]
[1733919141466,8.8527411,225.04,224.99,2.2213]
[1733919141966,2.2209,225.03,224.99,2.2212]
[1733919142167,2.14,225.02,224.99,2.2212]
[1733919143069,2.14,225.02,225.01,2.2211]
[1733919144170,1.4129,225.13,225.0,6.6319411]
[1733919144469,2.14,225.09,224.94,8.23023582]
[1733919144663,2.14,225.09,225.03,6.6319411]
[1733919144963,2.14,225.09,225.06,2.2206]
[1733919145167,6.6319411,225.07,224.94,8.23023582]
[1733919145366,2.14,225.09,224.89,127.39966632]
[1733919145559,2.76,225.06,224.89,5.46413483]
[1733919145763,6.6319411,224.93,224.89,5.46413483]
[1733919145966,8.7719411,224.93,224.89,7.68633483]
[1733919147169,2.14,224.93,224.89,7.68633483]
[1733919149968,2.14,224.93,224.89,2.2222]
[1733919150172,2.14,224.93,224.87,2.2224]
[1733919150371,2.14,224.93,224.83,10.43643244]
[1733919150873,4.3619,224.93,224.87,2.2224]
[1733919151471,2.14,224.93,224.89,2.2223]
[1733919151673,2.14,224.92,224.89,2.2223]
[1733919152069,2.2218,224.95,224.89,2.2223]
[1733919152374,2.14,224.94,224.89,2.2223]
[1733919152776,4.3618,224.94,224.89,2.2223]
[1733919153070,60.42823234,225.06,224.89,2.2223]
[1733919153274,10.43643244,224.98,224.89,2.2223]
[1733919153471,2.14,224.97,224.89,2.2223]
[1733919154174,2.2217,224.95,224.89,2.2223]
[1733919154674,2.14,224.97,224.87,5.46676811]
[1733919154877,2.2218,224.94,224.88,2.2223]
[1733919158573,2.2219,224.93,224.87,5.46676811]
[1733919158774,2.14,224.92,224.87,2.2225]
[1733919159672,4.362,224.92,224.87,2.2225]
[1733919161573,2.2221,224.91,224.87,2.2225]
[1733919162678,12.57643244,224.92,224.83,5.43445615]
[1733919162876,12.57643244,224.92,224.8,1.3904]
[1733919163783,2.2225,224.87,224.82,2.2229]
[1733919163985,2.14,224.86,224.82,2.2229]
[1733919164178,2.14,224.85,224.82,2.2229]
[1733919164479,2.14,224.85,224.8,1.3904]
[1733919164675,2.14,224.85,224.82,2.2229]
[1733919165482,2.14,224.85,224.81,2.223]
[1733919166481,2.14,224.85,224.8,5.45676577]
[1733919166682,4.3627,224.85,224.81,2.223]
[1733919167282,11.04727952,224.85,224.81,2.223]
[1733919167778,8.82457952,224.85,224.81,2.223]
[1733919168178,8.82457952,224.85,224.79,2.2232]
[1733919168378,6.68457952,224.83,224.79,2.2232]
[1733919170085,8.90747952,224.83,224.79,2.2232]
[1733919170584,8.90747952,224.83,224.78,2.2233]
[1733919170788,2.2229,224.83,224.77,5.42198174]
[1733919171483,6.68457952,224.82,224.75,68.91176765]
[1733919171683,2.2231,224.81,224.77,2.2234]
[1733919171883,2.14,224.8,224.77,2.2234]
[1733919172284,2.14,224.8,224.71,1.3265]
[1733919172285,6.68457952,224.78,224.64,6.09023582]
[1733919172480,6.68457952,224.78,224.63,18.27043126]
[1733919172481,6.68457952,224.74,224.65,6.68457952]
[1733919172685,2.14,224.73,224.65,6.68457952]
[1733919172886,6.68457952,224.72,224.65,6.68457952]
[1733919173488,6.68457952,224.72,224.69,2.2242]
[1733919174385,6.68457952,224.72,224.65,6.68457952]
[1733919175286,1.3441,224.79,224.65,10.45670649]
[1733919175480,2.14,224.78,224.65,10.45670649]
[1733919175787,2.14,224.86,224.74,10.45670649]
[1733919175991,2.7708,224.94,224.77,10.45670649]
[1733919176178,2.7708,224.94,224.69,13.32]
[1733919176179,12.67920649,224.87,224.81,2.223]
[1733919176380,2.14,224.86,224.76,2.8563]
[1733919176989,10.45670649,224.84,224.7,1.4073]
[1733919177688,2.2231,224.81,224.74,2.2237]
[1733919177886,2.14,224.8,224.74,2.2237]
[1733919178281,4.3632,224.8,224.74,2.2237]
[1733919178481,2.14,224.8,224.69,11.90060649]
[1733919178686,2.14,224.8,224.69,1.4439]
[1733919179190,2.2236,224.76,224.68,6.69774673]
[1733919179392,2.16,224.75,224.68,5.28534673]
[1733919179694,2.2238,224.73,224.64,1.3222]
[1733919179988,2.16,224.75,224.64,1.3222]
[1733919180185,2.2238,224.74,224.68,2.2243]
[1733919180389,2.2238,224.74,224.64,1.3222]
[1733919180390,12.61670649,224.75,224.64,1.3222]
[1733919180692,14.84040649,224.75,224.68,2.2243]
[1733919180890,12.61670649,224.75,224.68,2.2243]
[1733919181086,4.0042,224.85,224.66,5.36311269]
[1733919181286,10.45670649,224.79,224.7,2.2241]
[1733919181495,2.16,224.78,224.7,2.2241]
[1733919181993,2.16,224.77,224.67,10.45670649]
[1733919182290,2.16,224.76,224.67,10.45670649]
[1733919182884,2.16,224.76,224.75,2.2236]
[1733919183084,12.67980649,224.81,224.7,10.45670649]
[1733919183289,2.16,224.8,224.7,10.45670649]
[1733919184087,2.2233,224.79,224.7,10.45670649]
[1733919184288,2.16,224.8,224.7,10.45670649]
[1733919185287,4.3832,224.8,224.75,2.2236]
[1733919185487,10.45670649,224.84,224.7,10.45670649]
[1733919185688,2.16,224.83,224.7,10.45670649]
[1733919185888,2.16,224.82,224.71,1.3837]
[1733919186084,2.16,224.82,224.71,2.7551]
[1733919186590,2.16,224.82,224.73,10.45670649]
[1733919186786,2.16,224.84,224.73,10.45670649]
[1733919186990,2.16,224.84,224.77,2.2234]
[1733919187191,2.16,224.84,224.74,1.4361]
[1733919187588,4.3828,224.84,224.77,2.2234]
[1733919187796,4.3828,224.84,224.74,1.4361]
[1733919188796,2.16,224.84,224.74,1.4361]
[1733919189590,10.45670649,224.87,224.74,1.4361]
[1733919189795,4.3826,224.86,224.74,1.4361]
[1733919189987,2.16,224.86,224.74,1.4361]
[1733919190494,2.2229,224.83,224.74,1.4361]
[1733919190893,2.2228,224.84,224.74,1.4361]
[1733919191190,2.16,224.86,224.74,1.4361]
[1733919191998,2.223,224.82,224.77,2.2234]
[1733919192299,2.16,224.81,224.77,2.2234]
[1733919192700,2.16,224.81,224.79,2.2232]
[1733919193399,0.2619,224.9,224.88,2.2223]
[1733919193700,0.2619,224.9,224.82,10.45670649]
[1733919194099,2.4841,224.9,224.85,2.2226]
[1733919195004,2.2224,224.88,224.83,2.2228]
[1733919195203,4.3824,224.88,224.79,17.92094231]
[1733919195405,2.16,224.88,224.79,17.92094231]
[1733919195702,2.16,224.88,224.84,2.2227]
[1733919195997,2.16,224.88,224.79,17.92094231]
[1733919197299,2.16,224.88,224.8,4.46383974]
[1733919197700,0.2619,224.9,224.85,2.2226]
[1733919198005,2.16,224.89,224.85,2.2226]
[1733919199201,2.16,224.89,224.82,10.45670649]
[1733919199399,2.16,224.89,224.86,2.2225]
[1733919200099,2.16,224.89,224.82,10.45670649]
[1733919200306,2.16,224.89,224.85,2.2226]